bitfinex/quotes_ETHUSD_20260114
["timestamp","ask_amount","ask_price","bid_price","bid_amount"]
[1768349177143,0.002,3325.2,3324.3,2.16877582]
[1768349177353,0.002,3325.2,3324.4,0.401]
[1768349177648,0.002,3325.2,3324.3,2.16877582]
[1768349177844,0.002,3325.2,3324.2,0.401]
[1768349178652,0.002,3325.2,3324.2,3.00823139]
[1768349179222,0.002,3325.2,3324.1,5.55602148]
[1768349179614,0.002,3325.3,3324.9,2.14671608]
[1768349179957,0.002,3325.8,3324.9,2.14671608]
[1768349180157,3.00881595,3325.8,3325.0,0.401]
[1768349180316,3.00881595,3325.8,3325.0,2.54771608]
[1768349180972,0.002,3325.8,3324.2,2.14671608]
[1768349181132,2.01390683,3325.8,3324.2,2.4169479]
[1768349181320,2.01390683,3325.8,3324.4,3.00801146]
[1768349181940,0.002,3325.8,3324.5,2.14671608]
[1768349182150,0.002,3325.8,3324.7,3.0077341]
[1768349182449,0.002,3325.8,3324.9,2.14671608]
[1768349182654,0.002,3325.2,3324.9,2.14671608]
[1768349183654,0.002,3325.2,3324.8,0.401]
[1768349185048,0.002,3325.2,3324.7,0.401]
[1768349185253,0.002,3325.2,3324.6,0.401]
[1768349185558,0.002,3325.2,3324.3,3.40914457]
[1768349185962,0.002,3325.2,3324.2,2.14671608]
[1768349186419,0.002,3325.2,3324.2,2.54771608]
[1768349186818,0.002,3325.2,3324.2,5.5559518]
[1768349187057,0.002,3325.2,3324.2,2.54771608]
[1768349188018,0.002,3325.2,3324.0,3.00837266]
[1768349188223,2.01390683,3325.2,3323.5,2.14671608]
[1768349188479,2.01190683,3325.0,3323.5,5.15553288]
[1768349188769,2.01190683,3325.0,3323.6,3.40976179]
[1768349189373,2.01190683,3325.0,3323.6,0.401]
[1768349189573,2.01190683,3325.0,3322.9,2.14671608]
[1768349189723,2.01190683,3324.8,3323.3,0.401]
[1768349189923,2.01190683,3324.4,3323.3,0.401]
[1768349190136,2.01190683,3324.4,3323.1,3.00921672]
[1768349190347,2.01190683,3324.4,3323.0,0.61567161]
[1768349190667,2.01190683,3324.4,3322.6,2.14671608]
[1768349191163,2.01190683,3324.4,3322.6,5.15634178]
[1768349191370,2.01190683,3324.4,3322.6,5.55734178]
[1768349191658,2.01190683,3324.4,3322.7,3.0095992]
[1768349191847,2.01190683,3324.2,3322.7,3.0095992]
[1768349192046,2.01190683,3324.0,3322.7,3.0095992]
[1768349192248,2.01190683,3324.0,3322.6,5.15640049]
[1768349192651,9.42199924,3324.1,3322.7,2.17681208]
[1768349192652,6.41366616,3324.1,3322.7,2.17681208]
[1768349192825,0.64136662,3324.0,3322.8,2.96633485]
[1768349193027,0.64136662,3324.0,3322.9,0.03009419]
[1768349193746,0.64136662,3324.0,3322.9,3.00936693]
[1768349193747,3.00851409,3323.9,3322.9,3.00936693]
[1768349194056,0.36498807,3323.8,3322.9,3.03946112]
[1768349194425,0.36498807,3323.8,3323.6,0.001]
[1768349194616,0.36498807,3323.8,3322.9,3.00940005]
[1768349196425,3.00869512,3323.7,3322.8,5.15618951]
[1768349196647,3.64692762,3323.7,3322.8,5.15618951]
[1768349196926,3.64692762,3323.7,3322.6,3.41066054]
[1768349196927,2.08972338,3323.6,3322.4,0.001]
[1768349197125,0.397,3323.5,3322.4,0.001]
[1768349197367,2.48672338,3323.5,3322.4,0.001]
[1768349197571,2.33839572,3323.4,3322.4,0.001]
[1768349198670,2.08972338,3323.2,3321.8,5.07473534]
[1768349198841,2.08972338,3323.2,3321.8,2.06437807]
[1768349199035,2.08972338,3323.2,3321.9,0.03010325]
[1768349199259,6.01811452,3323.3,3321.9,2.09448132]
[1768349199463,3.00854367,3323.9,3322.3,2.06437807]
[1768349199662,6.01711782,3323.9,3322.5,2.06437807]
[1768349199970,6.01711782,3323.9,3322.6,0.401]
[1768349200178,0.83624394,3323.8,3322.7,2.31091588]
[1768349200471,6.01739024,3323.7,3322.7,0.24653781]
[1768349200792,0.83624394,3323.8,3322.7,0.24653781]
[1768349200793,3.84488384,3323.8,3322.7,8.08355711]
[1768349200955,3.00812992,3324.4,3323.4,2.06437807]
[1768349201467,3.40491431,3324.6,3323.4,2.06437807]
[1768349201644,6.41282862,3324.6,3323.4,2.06437807]
[1768349202051,0.397,3324.6,3323.4,2.06437807]
[1768349202276,0.20447854,3324.9,3323.6,2.06437807]
[1768349202277,3.00776876,3324.8,3323.6,2.06437807]
[1768349202456,3.00776876,3324.8,3323.8,2.06437807]
[1768349202651,0.20447854,3324.9,3324.0,2.06437807]
[1768349202863,3.21209031,3324.9,3324.0,2.06437807]
[1768349203057,3.21209031,3324.9,3324.0,2.57166729]
[1768349203653,6.21970208,3324.9,3324.0,2.57166729]
[1768349203858,6.21970208,3324.9,3323.5,2.27081588]
[1768349204056,6.21970208,3324.9,3323.5,2.67181588]
[1768349204563,11.31703723,3324.9,3323.5,2.67181588]
[1768349204742,6.01558034,3324.7,3323.3,0.401]
[1768349204969,8.10530372,3324.7,3323.2,5.07350527]
[1768349205377,0.20447854,3324.9,3323.3,2.46537807]
[1768349205696,0.20447854,3324.9,3323.6,2.06437807]
[1768349205898,0.20447854,3324.9,3323.8,2.06437807]
[1768349206498,0.002,3324.4,3324.0,2.06437807]
[1768349206698,0.20447854,3324.9,3324.4,2.06437807]
[1768349206870,0.002,3325.2,3324.6,2.06437807]
[1768349207701,0.002,3325.5,3324.6,2.46537807]
[1768349207903,0.002,3325.8,3325.0,2.06437807]
[1768349208072,0.002,3325.8,3325.2,2.06437807]
[1768349208273,0.002,3326.1,3325.2,2.06437807]
[1768349208799,0.002,3326.1,3325.3,6.01449492]
[1768349209104,0.002,3326.6,3325.4,2.06437807]
[1768349209272,0.34268989,3326.6,3325.4,2.06437807]
[1768349211077,3.00616263,3326.5,3325.5,3.0070666]
[1768349211279,3.00616263,3326.5,3325.6,0.401]
[1768349211816,3.34878056,3326.6,3325.6,0.401]
[1768349212387,0.34268989,3326.6,3325.6,2.46537807]
[1768349212590,0.34268989,3326.6,3325.7,2.9123292]
[1768349212812,0.002,3326.6,3325.8,2.06437807]
[1768349212990,0.002,3326.6,3325.9,3.00670495]
[1768349213184,0.002,3326.6,3326.0,2.06437807]
[1768349213391,0.002,3326.6,3325.8,3.00677342]
[1768349214275,0.002,3326.6,3325.9,2.06437807]
[1768349215377,0.002,3326.6,3326.0,2.06437807]
[1768349215698,0.002,3326.6,3326.1,0.401]
[1768349216095,0.002,3326.6,3326.1,2.46537807]
[1768349217402,0.002,3326.6,3326.1,5.47186823]
[1768349218480,0.002,3326.6,3326.1,2.46537807]
[1768349218698,0.002,3326.3,3326.1,2.46537807]
[1768349218886,0.002,3326.3,3326.1,0.401]
[1768349219708,0.002,3326.3,3325.9,0.001]
[1768349219880,0.002,3326.3,3326.0,0.401]
[1768349220515,0.002,3326.3,3325.9,0.001]
[1768349220684,2.09172338,3326.3,3325.1,3.00738856]
[1768349220880,0.20917234,3326.2,3325.6,3.00692685]
[1768349221093,0.002,3326.3,3325.7,0.03006885]
[1768349221389,0.002,3326.6,3325.8,5.07111884]
[1768349221584,0.002,3326.6,3325.8,2.06437807]
[1768349222080,0.002,3326.6,3325.9,0.401]
[1768349222295,0.002,3326.9,3326.2,2.06437807]
[1768349224915,0.002,3326.9,3326.2,5.07077214]
[1768349225133,0.002,3326.9,3326.2,2.06437807]
[1768349227314,0.002,3327.2,3326.5,2.0712839]
[1768349227516,0.002,3327.2,3326.5,2.4722839]
[1768349228118,0.002,3327.2,3326.5,5.47842922]
[1768349229117,0.002,3327.2,3326.6,2.0712839]
[1768349229999,0.002,3327.2,3326.6,5.47835139]
[1768349230212,0.002,3327.2,3326.6,0.401]
[1768349230527,0.002,3327.2,3326.8,0.001]
[1768349230696,0.002,3326.9,3326.4,0.401]
[1768349230896,0.002,3326.9,3326.3,3.40734197]
[1768349231118,0.002,3326.9,3326.3,0.401]
[1768349232114,0.002,3326.9,3326.2,0.401]
[1768349232434,0.21846605,3326.9,3326.1,0.401]
[1768349232598,0.002,3326.9,3326.2,3.00638334]
[1768349233529,0.002,3326.9,3326.1,0.401]
[1768349233945,0.002,3326.9,3326.1,3.40752362]
[1768349234303,0.002,3326.9,3326.1,3.00652362]
[1768349234500,0.002,3326.9,3326.1,3.40752362]
[1768349235332,0.002,3326.9,3326.1,0.401]
[1768349235635,0.002,3326.9,3326.1,3.40750934]
[1768349235932,2.16266046,3326.7,3325.3,3.00724237]
[1768349236188,2.16266046,3326.5,3324.9,0.03007609]
[1768349236312,2.16266046,3326.5,3324.4,2.0712839]
[1768349236909,2.16266046,3326.5,3324.5,0.401]
[1768349237394,2.16266046,3326.5,3324.2,0.401]
[1768349237595,2.09795525,3326.3,3324.2,3.40924257]
[1768349237846,2.09795525,3326.1,3324.2,0.401]
[1768349237995,2.09795525,3325.9,3324.2,3.40924156]
[1768349238203,0.396,3326.0,3324.3,2.01411389]
[1768349238402,0.396,3326.0,3324.5,2.01411389]
[1768349238602,0.396,3326.0,3324.7,2.01411389]
[1768349238898,2.34735078,3325.9,3324.3,2.04419541]
[1768349239102,0.24939553,3325.9,3324.3,2.04419541]
[1768349239417,0.396,3326.0,3324.3,2.04419541]
[1768349239929,3.00670495,3325.9,3324.7,2.01411389]
[1768349240134,3.40264897,3326.0,3324.8,2.04419088]
[1768349240320,0.396,3326.0,3324.8,2.04419088]
[1768349240524,0.396,3326.0,3324.8,2.01411389]
[1768349240728,0.396,3326.0,3325.0,2.01411389]
[1768349240898,3.40262605,3326.0,3325.0,2.01411389]
[1768349241098,3.40262605,3326.0,3324.7,2.04419179]
[1768349241338,3.40262605,3326.0,3324.8,0.401]
[1768349241634,2.09795525,3325.9,3324.8,0.401]
[1768349241956,3.00688576,3325.7,3324.8,3.40868121]
[1768349242236,3.00688576,3325.7,3325.0,0.001]
[1768349243813,0.85072074,3325.8,3325.0,2.01511389]
[1768349244014,3.00672787,3325.9,3325.0,2.01511389]
[1768349244238,3.40265299,3326.0,3325.0,5.05265349]
[1768349244537,3.00645018,3326.2,3325.1,2.01411389]
[1768349244538,3.00643376,3326.2,3325.1,2.01411389]
[1768349245437,0.397,3326.3,3325.3,2.01411389]
[1768349245634,3.40336359,3326.3,3325.3,2.01411389]
[1768349245847,0.397,3326.3,3325.5,2.01411389]
[1768349246014,0.397,3326.3,3325.7,2.01411389]
[1768349246232,3.40336591,3326.3,3325.0,2.01511389]
[1768349246561,0.002,3326.9,3325.4,2.41511389]
[1768349246858,0.397,3326.8,3325.7,2.01411389]
[1768349247042,0.397,3326.8,3325.9,2.01411389]
[1768349247443,0.397,3326.8,3325.9,2.41511389]
[1768349247637,0.002,3326.9,3325.9,2.41511389]
[1768349248040,0.002,3326.9,3326.1,2.01411389]
[1768349248247,0.002,3326.9,3326.3,2.01411389]
[1768349248563,0.002,3326.9,3326.2,0.8027343]
[1768349248858,0.002,3326.9,3325.9,3.00668552]
[1768349249641,0.002,3326.9,3325.8,3.80957604]
[1768349249842,0.002,3326.9,3325.9,3.00669163]
[1768349250049,0.002,3326.9,3326.1,5.02063804]
[1768349250370,0.002,3326.9,3325.7,2.01411389]
[1768349250665,2.09995525,3326.9,3325.0,0.001]
[1768349251272,2.09995525,3326.9,3325.2,3.00732417]
[1768349251468,2.09795525,3326.7,3325.2,3.00732417]
[1768349251634,2.49495525,3326.6,3325.4,3.00714957]
[1768349251835,2.49495525,3326.6,3325.2,3.00732417]
[1768349252663,6.40932526,3326.5,3325.2,2.01411389]
[1768349253780,6.40932526,3326.5,3325.3,0.001]
[1768349253938,2.09795525,3326.2,3325.0,0.001]
[1768349254572,2.09795525,3326.2,3324.3,2.01411389]
[1768349254983,2.09795525,3326.2,3325.0,3.00744764]
[1768349255136,6.01268676,3326.3,3325.0,5.15901176]
[1768349255343,0.66536193,3326.2,3325.0,5.15901176]
[1768349255843,2.06740185,3326.0,3324.7,3.00779017]
[1768349256049,0.397,3325.9,3324.7,3.00779017]
[1768349256268,0.397,3325.9,3324.8,2.15152277]
[1768349256466,0.397,3325.9,3324.9,2.18159886]
[1768349256467,0.73735242,3325.9,3324.9,2.18159886]
[1768349256667,0.397,3325.9,3324.9,2.15152277]
[1768349257566,0.397,3325.9,3324.7,6.01558034]
[1768349257774,0.397,3325.9,3324.7,8.16710311]
[1768349257942,0.397,3325.9,3325.0,2.15152277]
[1768349258269,0.34036722,3325.8,3325.0,2.15152277]
[1768349258465,0.34036722,3325.8,3324.9,3.00760925]
[1768349258870,0.34036722,3325.8,3325.0,2.15152277]
[1768349259947,0.34036722,3325.8,3325.1,3.00742834]
[1768349260678,3.34722973,3325.8,3324.7,3.00778359]
[1768349260881,0.34036722,3325.8,3325.0,8.16655246]
[1768349261082,0.397,3325.9,3325.1,2.15152277]
[1768349262228,0.397,3325.9,3325.2,3.0073379]
[1768349262524,3.40371449,3325.9,3325.1,5.15891345]
[1768349262904,0.397,3325.9,3325.1,5.15891345]
[1768349263108,12.02302352,3328.3,3325.1,5.15891345]
[1768349263109,2.06740185,3327.0,3325.2,2.15152277]
[1768349263336,0.7139681,3326.8,3325.4,2.15152277]
[1768349263629,0.05888009,3326.8,3325.6,2.15152277]
[1768349263937,0.05888009,3326.8,3325.8,2.15152277]
[1768349264237,0.05888009,3326.8,3326.0,2.15152277]
[1768349264928,0.397,3327.1,3326.3,2.15152277]
[1768349265698,0.002,3327.2,3326.8,2.15152277]
[1768349266239,0.002,3327.2,3326.9,8.16312515]
[1768349266537,0.002,3327.2,3327.0,2.15152277]
[1768349268316,0.002,3327.2,3327.0,5.15722782]
[1768349268502,0.002,3327.2,3327.0,2.15152277]
[1768349269111,0.002,3327.2,3327.0,3.00570724]
[1768349269704,0.002,3327.2,3326.7,0.401]
[1768349269705,0.002,3327.2,3326.9,3.00574103]
[1768349270447,0.002,3327.2,3326.8,3.00589154]
[1768349270608,0.002,3327.2,3326.8,3.64717654]
[1768349272332,0.002,3327.5,3326.8,8.80459085]
[1768349272632,0.002,3327.5,3326.9,2.15152277]
[1768349274834,0.002,3327.5,3326.9,5.15724438]
[1768349275137,0.002,3327.5,3326.9,6.07778647]
[1768349275340,0.002,3327.5,3326.9,9.08358766]
[1768349275841,0.05888009,3327.7,3326.9,9.08358766]
[1768349275842,0.05888009,3327.7,3327.0,2.15152277]
[1768349276815,0.002,3328.0,3327.8,2.15152277]
[1768349277039,2.06740185,3328.4,3327.7,0.401]
[1768349277238,2.06740185,3328.4,3327.1,9.01686153]
[1768349277436,2.27434203,3328.3,3327.4,0.401]
[1768349277743,0.002,3328.5,3327.4,0.401]
[1768349278441,0.002,3327.7,3327.4,0.401]
[1768349278741,0.002,3328.5,3327.4,0.401]
[1768349279036,2.06740185,3328.4,3327.2,0.001]
[1768349279237,0.80781796,3328.3,3327.2,0.0310553]
[1768349279532,0.80781796,3328.3,3327.2,2.15252277]
[1768349279706,3.00635631,3328.5,3327.2,2.15252277]
[1768349280120,3.00635631,3328.5,3327.2,2.18257807]
[1768349280323,6.0107777,3328.5,3327.2,2.15252277]
[1768349280524,8.07817955,3328.5,3327.3,0.401]
[1768349280929,6.0107777,3328.5,3327.4,3.00534952]
[1768349281123,0.64097777,3328.4,3327.4,3.00534952]
[1768349281323,0.64097777,3328.4,3327.4,2.15152277]
[1768349282847,2.06740185,3328.3,3327.2,0.001]
[1768349283173,0.64097777,3328.4,3327.2,0.001]
[1768349283174,2.06740185,3328.1,3327.2,0.001]
[1768349283454,2.46440185,3328.0,3327.2,0.001]
[1768349283655,2.46440185,3328.0,3326.6,0.401]
[1768349284027,2.46440185,3328.0,3326.8,3.00584308]
[1768349284530,2.46440185,3328.0,3326.7,3.0059521]
[1768349284729,0.24644018,3327.9,3326.7,3.0059521]
[1768349284943,2.15270137,3327.7,3326.3,3.0063252]
[1768349285146,3.00498828,3327.8,3326.4,2.0816309]
[1768349285354,3.00462712,3328.2,3326.4,2.4826309]
[1768349285522,6.00925424,3328.2,3326.4,2.4826309]
[1768349286726,9.01388136,3328.2,3326.4,2.4826309]
[1768349287044,9.01388136,3328.2,3326.6,2.05156837]
[1768349287428,6.00925424,3328.2,3326.6,2.05156837]
[1768349287635,0.94108251,3328.1,3326.8,2.05156837]
[1768349287832,0.94108251,3328.1,3327.0,2.05156837]
[1768349289136,3.00480769,3328.0,3327.1,2.05156837]
[1768349289555,3.00480769,3328.0,3327.0,3.00569098]
[1768349289556,3.94583183,3328.1,3327.3,2.05156837]
[1768349289732,6.00949864,3328.1,3327.3,2.05156837]
[1768349290347,3.40153744,3328.3,3327.3,2.05156837]
[1768349290549,3.4015628,3328.3,3327.3,2.05156837]
[1768349290758,6.4061256,3328.3,3327.3,2.05156837]
[1768349290958,6.4061256,3328.3,3327.1,0.001]
[1768349290959,0.002,3327.8,3327.1,0.001]
[1768349291160,0.002,3327.8,3327.3,3.00543984]
[1768349291546,0.002,3327.8,3327.2,3.51133949]
[1768349291743,0.002,3327.8,3327.2,0.50582748]
[1768349292163,0.002,3327.8,3327.2,3.5113114]
[1768349292375,0.002,3327.8,3327.1,0.001]
[1768349292664,2.15470137,3327.8,3327.1,0.001]
[1768349292871,2.15470137,3327.8,3326.8,0.401]
[1768349293167,2.15470137,3327.8,3326.6,2.05156837]
[1768349293168,0.002,3327.8,3326.6,2.05156837]
[1768349293330,0.21547014,3327.7,3326.3,2.45256837]
[1768349293532,0.399,3327.8,3326.3,2.45256837]
[1768349294162,0.399,3327.8,3326.5,2.05156837]
[1768349294469,0.399,3327.8,3326.6,2.08162909]
[1768349295237,0.002,3327.8,3326.8,2.05156837]
[1768349295445,0.002,3327.8,3327.0,2.05156837]
[1768349295773,0.002,3327.8,3327.2,2.05156837]
[1768349296141,0.002,3328.1,3327.2,2.05156837]
[1768349296343,0.002,3328.1,3327.4,2.05156837]
[1768349296538,0.002,3328.1,3327.4,2.45256837]
[1768349296774,0.002,3328.5,3327.4,2.45256837]
[1768349296943,0.002,3328.5,3327.0,2.10250084]
[1768349296944,3.00639799,3328.5,3327.0,2.10250084]
[1768349297142,2.14675714,3328.4,3327.1,0.401]
[1768349297459,0.81575531,3328.3,3327.3,2.07244374]
[1768349297653,3.00637875,3328.5,3327.3,2.07244374]
[1768349298585,0.002,3328.8,3327.9,2.07244374]
[1768349298870,3.0060918,3328.8,3327.8,0.401]
[1768349299072,3.00608679,3328.8,3327.8,0.401]
[1768349299452,3.00608679,3328.8,3327.9,3.00489798]
[1768349299453,0.002,3328.8,3327.9,3.00489798]
[1768349300176,0.002,3328.8,3328.0,2.07244374]
[1768349300690,7.52330207,3331.3,3328.6,2.07244374]
[1768349300975,3.00255216,3330.5,3328.8,2.07244374]
[1768349301145,0.397,3330.9,3329.5,2.07244374]
[1768349301344,0.397,3330.9,3329.9,2.07244374]
[1768349302173,3.39919208,3330.9,3329.9,2.07244374]
[1768349302373,6.40138416,3330.9,3329.3,2.07244374]
[1768349302577,6.40138416,3330.9,3329.8,2.07244374]
[1768349302778,0.64013842,3330.8,3329.8,2.07244374]
[1768349303381,0.64013842,3330.8,3329.9,2.47344374]
[1768349303688,0.002,3330.2,3329.8,0.401]
[1768349303860,0.002,3330.2,3329.4,2.07244374]
[1768349304059,0.002,3330.2,3329.0,2.07244374]
[1768349304364,0.002,3330.2,3329.1,0.401]
[1768349304565,0.002,3330.2,3328.9,0.401]
[1768349304770,0.002,3330.2,3328.9,3.40494782]
[1768349304968,0.002,3330.2,3328.9,0.401]
[1768349305168,0.002,3330.2,3328.9,2.47344374]
[1768349305481,3.00482265,3330.2,3329.0,5.07632234]
[1768349305683,0.34018227,3330.1,3329.0,5.07632234]
[1768349305853,0.34018227,3330.1,3329.0,2.07244374]
[1768349306698,0.34018227,3330.1,3329.0,3.00388636]
[1768349306855,0.34018227,3330.1,3328.9,3.00396032]
[1768349307187,0.34018227,3330.1,3329.0,3.00387769]
[1768349307349,0.33450049,3330.0,3329.0,5.07632143]
[1768349307685,0.33450049,3330.0,3329.1,2.07244374]
[1768349308393,0.002,3330.2,3329.2,0.401]
[1768349308569,0.002,3330.2,3329.2,2.47344374]
[1768349308960,3.00485015,3330.2,3329.2,2.47344374]
[1768349309355,6.0077003,3330.2,3329.2,2.47344374]
[1768349309553,6.0077003,3330.2,3329.0,3.00387769]
[1768349309779,0.85514574,3330.1,3329.1,3.40477426]
[1768349310057,0.85514574,3330.1,3327.8,2.23244374]
[1768349310262,2.14675714,3330.0,3328.0,2.07244374]
[1768349310485,2.14675714,3330.0,3328.1,2.50349091]
[1768349310660,2.14675714,3330.0,3328.6,3.00420863]
[1768349310860,0.30019029,3329.9,3328.6,3.00420863]
[1768349311064,0.30019029,3329.9,3328.8,2.07244374]
[1768349311272,0.85514574,3330.1,3329.1,5.07625795]
[1768349311794,0.85514574,3330.1,3329.3,2.07244374]
[1768349311990,0.002,3330.2,3329.3,2.07244374]
[1768349312795,6.0076886,3330.2,3328.9,2.07244374]
[1768349312979,3.0048443,3330.2,3329.1,3.00377535]
[1768349313181,2.14675714,3330.1,3329.1,3.00377535]
[1768349313389,0.002,3330.2,3329.2,2.07244374]
[1768349313567,0.396,3330.4,3329.2,2.07244374]
[1768349313897,3.00273248,3330.3,3329.4,2.07244374]
[1768349314074,0.33987325,3330.2,3329.4,2.07244374]
[1768349314880,0.33987325,3330.2,3329.0,2.07244374]
[1768349315192,0.33987325,3330.2,3328.6,5.21925579]
[1768349315397,0.33987325,3330.2,3328.7,0.401]
[1768349315605,0.33987325,3330.2,3328.7,3.4051388]
[1768349315801,6.006006,3330.0,3328.7,5.6202138]
[1768349316363,0.396,3329.9,3328.7,5.6202138]
[1768349316581,0.396,3329.9,3328.6,3.00424048]
[1768349316784,0.396,3329.9,3328.6,0.401]
[1768349317094,0.396,3329.9,3328.6,5.62031796]
[1768349317290,0.9405009,3329.8,3328.7,2.215075]
[1768349317879,6.00654712,3329.7,3328.5,0.401]
[1768349319008,6.00654712,3329.7,3328.5,3.40534229]
[1768349319195,6.00654712,3329.7,3328.6,3.0042626]
[1768349319505,6.00654712,3329.7,3328.6,2.215075]
[1768349320633,1.0529693,3329.7,3328.2,2.215075]
[1768349320913,12.01273348,3329.8,3327.5,2.215075]
[1768349320914,1.0529693,3329.5,3327.5,2.215075]
[1768349321080,1.0529693,3329.3,3327.7,5.22009863]
[1768349321275,1.0529693,3329.3,3327.8,3.00497308]
[1768349321509,1.0529693,3329.3,3327.8,2.215075]
[1768349322008,1.0529693,3329.3,3327.8,5.22005352]
[1768349322208,0.397,3329.4,3328.3,2.215075]
[1768349322425,3.40057735,3329.4,3328.6,2.215075]
[1768349323981,0.397,3329.5,3328.3,5.21955744]
[1768349324419,0.397,3329.5,3328.3,5.21957625]
[1768349324652,6.00708836,3329.4,3328.3,5.21957625]
[1768349324922,0.64040884,3329.3,3328.3,2.215075]
[1768349325108,0.64040884,3329.3,3328.3,5.21956417]
[1768349326324,0.64040884,3329.3,3328.3,2.215075]
[1768349326493,3.6440808,3329.3,3328.3,5.21959363]
[1768349327730,3.6440808,3329.3,3328.6,0.001]
[1768349328029,0.36440808,3329.2,3328.6,0.001]
[1768349328432,1.06648097,3329.7,3328.6,0.001]
[1768349328433,3.00321171,3329.8,3328.6,2.617075]
[1768349328729,0.397,3329.9,3328.8,2.215075]
[1768349330820,0.397,3329.9,3329.0,2.215075]
[1768349331214,0.397,3329.9,3329.1,2.215075]
[1768349331606,2.8415259,3330.1,3329.3,2.215075]
[1768349332915,2.8415259,3330.1,3329.5,2.215075]
[1768349333792,2.8415259,3330.1,3329.3,3.00361557]
[1768349334305,2.8415259,3330.1,3329.2,3.00370005]
[1768349334306,3.00292478,3330.1,3329.2,3.00370005]
[1768349334511,0.30029248,3330.0,3329.2,3.00370005]
[1768349334814,3.30336606,3330.0,3328.9,3.40499191]
[1768349335017,3.30336606,3330.0,3329.0,3.00390507]
[1768349335220,3.30336606,3330.0,3329.0,6.00781014]
[1768349335514,0.30029248,3330.0,3329.0,6.00781014]
[1768349335720,0.30029248,3330.0,3329.0,6.64869115]
[1768349335924,5.10339654,3330.0,3329.0,3.64478608]
[1768349336290,5.10339654,3330.0,3329.0,4.04578608]
[1768349337310,8.50340289,3330.0,3329.0,0.401]
[1768349337519,2.10039019,3330.0,3329.2,2.215075]
[1768349337693,3.39962219,3330.5,3329.4,2.215075]
[1768349338024,0.34016222,3330.4,3329.4,2.215075]
[1768349338923,3.34281742,3330.4,3329.5,3.00345397]
[1768349339723,2.11936276,3330.3,3329.3,0.001]
[1768349339920,0.002,3329.8,3329.3,0.001]
[1768349340120,0.002,3329.8,3329.4,3.00354265]
[1768349340322,0.002,3330.1,3329.4,6.00708683]
[1768349340513,0.002,3330.1,3329.4,6.3075411]
[1768349340712,0.002,3330.1,3329.4,8.5226161]
[1768349341021,0.002,3330.1,3329.4,6.3075411]
[1768349341218,0.397,3330.5,3329.5,2.215075]
[1768349341390,0.397,3330.5,3329.6,0.401]
[1768349341591,6.40213732,3330.5,3329.6,0.401]
[1768349342160,0.002,3330.6,3329.7,2.215075]
[1768349342732,0.002,3330.6,3329.8,0.401]
[1768349342918,0.002,3330.6,3329.7,2.215075]
[1768349342919,0.002,3330.6,3329.7,5.21833794]
[1768349343107,0.002,3330.6,3329.7,0.401]
[1768349343307,0.002,3330.6,3329.6,3.00335509]
[1768349343629,2.11936276,3330.5,3329.5,0.85236161]
[1768349343857,2.11936276,3330.5,3329.3,0.001]
[1768349343858,2.11936276,3330.3,3329.3,0.001]
[1768349344314,0.21213628,3330.4,3329.3,0.001]
[1768349344624,2.51636276,3330.5,3329.3,0.001]
[1768349345025,2.1402983,3330.3,3329.3,0.001]
[1768349347040,2.1402983,3330.1,3329.3,0.001]
[1768349347350,0.397,3330.0,3329.3,0.001]
[1768349349365,2.1402983,3329.9,3329.3,0.001]
[1768349349510,0.85433465,3329.8,3329.3,0.001]
[1768349349811,0.85433465,3329.8,3328.4,5.52089379]
[1768349350005,2.1402983,3329.7,3328.4,2.51646286]
[1768349350211,2.1402983,3329.7,3328.4,5.52083987]
[1768349350407,2.1402983,3329.7,3328.1,2.11546286]
[1768349350810,2.1402983,3329.7,3327.8,0.401]
[1768349351015,2.1402983,3329.7,3328.1,3.0047093]
[1768349351210,2.1402983,3329.4,3327.9,3.00487318]
[1768349351447,2.5372983,3329.3,3327.9,6.00977116]
[1768349351648,2.5372983,3329.3,3328.0,2.11546286]
[1768349352319,2.5372983,3329.3,3328.1,0.03004717]
[1768349352650,2.5372983,3329.3,3328.0,2.11546286]
[1768349352944,0.25372983,3329.2,3328.1,0.8125234]
[1768349353450,3.25753141,3329.2,3328.1,0.8125234]
[1768349353740,3.25753141,3329.2,3328.1,3.00469169]
[1768349354310,6.26133299,3329.2,3328.1,3.00467497]
[1768349354643,2.1402983,3329.1,3327.8,0.401]
[1768349354827,2.1402983,3329.1,3328.0,3.0047566]
[1768349355027,0.84016313,3329.0,3328.0,3.0047566]
[1768349355234,2.1402983,3328.9,3327.6,2.11546286]
[1768349355548,3.00408555,3328.8,3327.8,0.401]
[1768349356844,5.1443321,3328.9,3327.8,0.401]
[1768349357046,0.89884135,3328.9,3327.8,1.253662]
[1768349357246,3.00391309,3329.0,3327.8,1.253662]
[1768349357436,3.00381484,3329.1,3327.8,1.253662]
[1768349357634,3.00381484,3329.1,3327.8,0.401]
[1768349357944,5.27164179,3329.1,3327.8,0.401]
[1768349358147,8.27545663,3329.1,3327.8,3.40595431]
[1768349358345,2.26782695,3329.0,3327.6,2.51646286]
[1768349358644,3.09537261,3328.9,3327.6,2.51646286]
[1768349358862,0.397,3328.8,3327.8,3.00497765]
[1768349359418,0.397,3328.8,3327.7,5.08820776]
[1768349359626,0.397,3328.8,3327.8,2.08312918]
[1768349360347,3.40109912,3328.8,3327.8,2.08312918]
[1768349360545,4.04160029,3328.8,3327.7,3.00507858]
[1768349360847,7.04569941,3328.8,3327.7,3.00507858]
[1768349361143,7.04569941,3328.8,3327.7,2.08312918]
[1768349361640,4.04160029,3328.8,3327.7,5.11820166]
[1768349361834,7.04569941,3328.8,3327.7,5.08815088]
[1768349362032,0.40416003,3328.7,3327.7,5.08815088]
[1768349362250,0.40416003,3328.7,3327.7,5.11820166]
[1768349362669,0.40416003,3328.7,3327.7,2.08312918]
[1768349363351,0.40416003,3328.7,3328.1,0.001]
[1768349363552,0.74498594,3328.6,3327.7,2.08312918]
[1768349363752,3.00435631,3328.5,3327.7,2.08312918]
[1768349363954,3.00435631,3328.5,3327.5,3.00520072]
[1768349364155,3.00435631,3328.5,3327.5,5.0883299]
[1768349364757,3.00435631,3328.5,3327.6,3.00515712]
[1768349364950,0.67536764,3328.4,3327.6,2.08312918]
[1768349365152,0.67536764,3328.4,3327.6,5.0882496]